bitfinex-derivatives/quotes_SOLF0:USTF0_20251115
["timestamp","ask_amount","ask_price","bid_price","bid_amount"]
[1763222733490,3.35,141.71,141.69,0.04439245]
[1763222734688,3.35,141.71,141.64,3.23]
[1763222734890,3.32,141.7,141.63,1.79375153]
[1763222735290,3.32,141.7,141.63,4.89375153]
[1763222735693,3.32,141.67,141.65,0.04963664]
[1763222738191,3.32,141.65,141.58,6.88313]
[1763222738489,3.32,141.65,141.59,1.79375153]
[1763222738690,3.32,141.65,141.6,3.1]
[1763222739194,3.32,141.63,141.61,0.05221127]
[1763222755097,0.0507781,141.64,141.61,3.15221127]
[1763222755395,0.0507781,141.64,141.62,2.80642333]
[1763222755599,0.0507781,141.64,141.62,5.90642333]
[1763222755901,3.3707781,141.64,141.62,5.90642333]
[1763222756597,0.0507781,141.64,141.62,5.90642333]
[1763222756803,0.0507781,141.64,141.63,3.1]
[1763222762006,3.3707781,141.64,141.53,8.74944749]
[1763222762198,32.56642333,141.65,141.48,3.1]
[1763222762199,0.04,141.58,141.48,3.1]
[1763222762509,0.04,141.56,141.49,3.1]
[1763222762709,5.15781207,141.55,141.49,3.1]
[1763222762907,5.15781207,141.57,141.51,3.1]
[1763222763108,0.04824796,141.55,141.53,3.15326369]
[1763222763304,0.04824796,141.55,141.54,5.90642333]
[1763222764714,0.04824796,141.55,141.53,3.36326369]
[1763222764907,0.04824796,141.55,141.54,6.11642333]
[1763222766204,0.04824796,141.55,141.54,3.31]
[1763222767212,0.08824796,141.55,141.53,0.05326369]
[1763222767404,0.04,141.54,141.45,3.31]
[1763222767609,0.04,141.52,141.45,3.31]
[1763222768612,0.05181636,141.5,141.47,3.36374259]
[1763222768813,0.09181636,141.5,141.47,3.36374259]
[1763222769013,0.09181636,141.5,141.47,0.05374259]
[1763222769313,0.04,141.49,141.47,0.05374259]
[1763222770312,0.04,141.48,141.41,3.31]
[1763222770810,2.80642333,141.49,141.41,3.31]
[1763222771217,0.04816776,141.46,141.44,3.22913537]
[1763222772816,0.04816776,141.46,141.44,0.04913537]
[1763222773516,0.08816776,141.46,141.44,0.04913537]
[1763222773811,0.04816776,141.46,141.44,3.22913537]
[1763222774315,0.04,141.45,141.44,0.04913537]
[1763222774514,0.08816776,141.46,141.44,0.04913537]
[1763222775212,0.04,141.45,141.38,3.18]
[1763222775412,0.04,141.48,141.38,3.18]
[1763222775614,0.04,141.5,141.41,3.18]
[1763222776213,2.80642333,141.54,141.44,0.05022344]
[1763222776214,0.05315621,141.47,141.44,0.05022344]
[1763222776416,0.04,141.52,141.45,3.18]
[1763222776618,0.04780918,141.46,141.45,3.18]
[1763222776818,0.04762275,141.47,141.45,3.18]
[1763222777019,0.05335122,141.47,141.45,3.22868199]
[1763222777421,0.05335122,141.47,141.45,0.04868199]
[1763222777621,0.09335122,141.47,141.45,0.04868199]
[1763222777918,0.04,141.46,141.45,0.04868199]
[1763222779713,0.04,141.45,141.38,3.18]
[1763222779921,0.04,141.44,141.38,3.18]
[1763222780316,0.04,141.44,141.25,20.83310866]
[1763222780317,0.04,141.38,141.28,3.18]
[1763222780623,0.04,141.38,141.29,3.18]
[1763222780825,0.0496255,141.34,141.32,3.22669445]
[1763222781216,0.04,141.33,141.21,3.18]
[1763222781618,12.1642517,141.39,141.23,3.18]
[1763222781814,10.42406345,141.4,141.26,3.18]
[1763222782019,6.97753039,141.41,141.2,6.97753039]
[1763222782020,5.18672131,141.39,141.29,3.18]
[1763222782224,5.18672131,141.42,141.32,3.18]
[1763222782426,5.18672131,141.41,141.34,6.97753039]
[1763222782615,0.04732618,141.38,141.36,0.04673477]
[1763222782919,0.05390756,141.38,141.36,0.05151196]
[1763222783124,0.05390756,141.38,141.36,3.23151196]
[1763222783324,0.05390756,141.38,141.36,0.05151196]
[1763222784323,1.47390756,141.38,141.28,3.18]
[1763222784524,5.18672131,141.41,141.28,3.18]
[1763222784725,5.18672131,141.4,141.28,3.18]
[1763222785026,12.1642517,141.39,141.24,3.18]
[1763222785227,0.04902651,141.33,141.3,0.05160197]
[1763222785433,0.05162588,141.33,141.3,0.0497274]
[1763222785624,0.05162588,141.33,141.2,6.97753039]
[1763222785824,0.05162588,141.33,141.21,3.18]
[1763222785825,6.97753039,141.33,141.21,3.18]
[1763222786024,6.97753039,141.33,141.18,3.18]
[1763222786231,11.82931721,141.32,141.18,3.18]
[1763222786624,0.044974,141.26,141.24,0.04865702]
[1763222786821,0.04917158,141.26,141.24,0.04865702]
[1763222787330,0.04917158,141.26,141.18,3.18]
[1763222788225,0.04917158,141.26,141.21,0.04849334]
[1763222788427,0.04917158,141.26,141.21,3.22849334]
[1763222789129,0.04917158,141.26,141.21,0.04849334]
[1763222791428,0.04917158,141.26,141.14,3.18]
[1763222791730,13.56950546,141.27,141.14,3.18]
[1763222791928,6.97753039,141.24,141.14,3.18]
[1763222792123,6.97753039,141.24,141.11,3.18]
[1763222792529,0.04863785,141.19,141.16,0.04563073]
[1763222793325,0.04863785,141.19,141.16,3.22563073]
[1763222794536,6.97753039,141.3,141.18,3.31]
[1763222794737,68.55733374,141.33,141.18,3.31]
[1763222794937,5.31542805,141.32,141.2,3.31]
[1763222795137,51.55753039,141.33,141.2,3.31]
[1763222795534,0.0513984,141.28,141.25,3.35685226]
[1763222795733,0.0513984,141.28,141.25,0.04685226]
[1763222796433,0.0513984,141.28,141.25,3.35685226]
[1763222796741,0.0513984,141.28,141.25,0.04685226]
[1763222797537,0.0513984,141.28,141.25,3.35685226]
[1763222799734,0.0513984,141.28,141.25,0.04685226]
[1763222799942,0.0513984,141.28,141.26,3.31]
[1763222800334,0.0513984,141.28,141.25,0.04685226]
[1763222800543,0.0513984,141.28,141.2,3.31]
[1763222800742,0.0513984,141.28,141.12,3.31]
[1763222800743,6.97753039,141.27,141.12,3.31]
[1763222801043,6.97753039,141.3,141.14,3.31]
[1763222801443,0.05221685,141.23,141.21,3.35550054]
[1763222801744,0.04519001,141.23,141.21,0.04802213]
[1763222807742,0.04519001,141.23,141.1,6.97753039]
[1763222808052,6.37969885,141.26,141.04,21.99753039]
[1763222808053,6.97753039,141.24,141.11,3.31]
[1763222808844,0.05286614,141.19,141.16,0.0495794]
[1763222809048,0.05286614,141.19,141.11,3.31]
[1763222816352,0.05286614,141.19,141.13,3.31]
[1763222816552,5.1480826,141.25,141.13,3.31]
[1763222816851,5.1480826,141.25,141.14,3.31]
[1763222817255,5.1480826,141.24,141.14,3.31]
[1763222817449,0.04539661,141.2,141.18,3.35680714]
[1763222817752,0.04544449,141.2,141.18,3.35680714]
[1763222818344,5.1480826,141.24,141.19,3.31]
[1763222818548,5.26780481,141.26,141.19,3.31]
[1763222818549,5.1480826,141.25,141.19,3.31]
[1763222819154,5.1480826,141.26,141.19,3.31]
[1763222819356,0.0497122,141.24,141.22,3.31]
[1763222819659,5.1977948,141.24,141.22,3.31]
[1763222819957,0.0497122,141.24,141.22,3.31]
[1763222820151,5.1977948,141.24,141.22,3.31]
[1763222820353,5.1480826,141.23,141.22,3.31]
[1763222821058,10.41588741,141.26,141.23,3.31]
[1763222821252,4.39207341,141.3,141.23,3.31]
[1763222821253,10.41588741,141.25,141.23,3.31]
[1763222821453,5.1480826,141.24,141.23,3.31]
[1763222821654,5.1480826,141.24,141.17,3.31]
[1763222821856,5.1480826,141.23,141.17,3.31]
[1763222822156,5.21679043,141.24,141.2,3.31]
[1763222822454,0.2,141.22,141.19,0.04656588]
[1763222822751,10.7311688,141.21,141.16,3.31]
[1763222823056,8.76863837,141.26,141.16,3.31]
[1763222823057,5.30617445,141.23,141.16,3.31]
[1763222823257,0.04545924,141.21,141.19,3.31]
[1763222823450,0.04674548,141.21,141.19,3.36159019]
[1763222823847,0.04674548,141.21,141.2,3.31]
[1763222824152,13.16071178,141.27,141.21,3.11]
[1763222824153,5.31581723,141.24,141.21,3.11]
[1763222824350,5.31581723,141.23,141.21,3.11]
[1763222824554,5.25019404,141.25,141.21,3.11]
[1763222824751,5.25019404,141.24,141.21,3.11]
[1763222824949,3.36,141.26,141.14,3.11]
[1763222825156,3.36,141.22,141.14,3.11]
[1763222825356,5.29664493,141.21,141.19,0.0523638]
[1763222825657,5.25700428,141.2,141.19,3.1623638]
[1763222826049,5.25700428,141.2,141.19,0.0523638]
[1763222826556,5.25700428,141.2,141.16,3.11]
[1763222826756,5.25700428,141.19,141.16,3.11]
[1763222826956,3.40768833,141.21,141.16,3.11]
[1763222827158,5.2587916,141.2,141.16,3.11]
[1763222827357,5.2587916,141.19,141.16,3.11]
[1763222827555,5.2587916,141.18,141.16,3.16074522]
[1763222827755,9.78738718,141.21,141.16,3.16074522]
[1763222827959,5.26357773,141.2,141.16,3.16074522]
[1763222828159,5.26357773,141.19,141.16,3.16074522]
[1763222828360,5.26357773,141.18,141.16,3.16074522]
[1763222828556,5.26357773,141.17,141.16,3.16074522]
[1763222829649,5.26357773,141.17,141.16,0.05074522]
[1763222830456,5.26357773,141.17,141.16,3.16074522]
[1763222830856,0.04496927,141.18,141.17,3.11]
[1763222831856,0.04496927,141.18,141.16,3.11074522]
[1763222832161,6.37969885,141.23,141.17,3.06]
[1763222832762,6.37969885,141.24,141.17,3.06]
[1763222833263,0.05307241,141.22,141.2,3.06]
[1763222835763,0.05307241,141.22,141.19,3.11019368]
[1763222835764,5.15703645,141.21,141.19,3.11019368]
[1763222835963,5.15703645,141.2,141.19,3.11019368]
[1763222836158,0.05307241,141.22,141.19,3.11019368]
[1763222836362,5.1574872,141.21,141.19,3.11019368]
[1763222836563,5.1574872,141.2,141.19,3.11019368]
[1763222837465,5.1574872,141.21,141.19,3.11019368]
[1763222837658,0.05307241,141.22,141.19,3.11019368]
[1763222838755,8.44623469,141.22,141.19,0.05019368]
[1763222838958,5.16316228,141.21,141.19,0.05019368]
[1763222839165,5.16339079,141.2,141.19,0.05019368]
[1763222839366,5.16339079,141.21,141.19,0.05019368]
[1763222839864,3.28307241,141.22,141.19,0.05019368]
[1763222840065,5.1635934,141.21,141.19,0.05019368]
[1763222840265,5.1646185,141.21,141.19,0.05019368]
[1763222841461,3.28307241,141.22,141.19,0.05019368]
[1763222842163,8.44769091,141.22,141.19,0.05019368]
[1763222842362,3.28307241,141.22,141.19,0.05019368]
[1763222843067,8.44769091,141.22,141.19,0.05019368]
[1763222843266,5.1646185,141.21,141.19,0.05019368]
[1763222844561,5.1646185,141.2,141.19,0.05019368]
[1763222844766,5.1646185,141.21,141.19,0.05019368]
[1763222845058,8.3946185,141.2,141.19,0.05019368]
[1763222847877,5.1646185,141.2,141.19,0.05019368]
[1763222848176,5.1646185,141.21,141.19,3.11019368]
[1763222848370,0.05307241,141.22,141.19,3.11019368]
[1763222848675,5.21769091,141.22,141.19,3.11019368]
[1763222848974,0.05307241,141.22,141.19,3.11019368]
[1763222849174,5.21769091,141.22,141.19,3.11019368]
[1763222849375,0.05307241,141.22,141.19,3.11019368]
[1763222849574,5.21769091,141.22,141.19,3.11019368]
[1763222849775,0.05307241,141.22,141.19,3.11019368]
[1763222849976,5.21769091,141.22,141.19,3.11019368]
[1763222850175,0.05307241,141.22,141.19,3.11019368]
[1763222850479,5.21769091,141.22,141.19,3.11019368]
[1763222850683,5.17342167,141.21,141.19,3.11019368]
[1763222850882,3.23,141.2,141.19,0.05019368]
[1763222851083,8.40342167,141.2,141.19,0.05019368]
[1763222851285,3.23,141.19,141.13,3.06]
[1763222851484,3.23,141.17,141.13,3.06]
[1763222851685,8.40342167,141.17,141.13,3.06]
[1763222851885,3.23,141.2,141.13,3.06]
[1763222852086,5.17342167,141.19,141.13,3.06]
[1763222852384,0.05084973,141.17,141.15,0.04520493]
[1763222852580,5.22269609,141.17,141.15,0.04520493]
[1763222853681,8.40342167,141.16,141.1,3.06]
[1763222853887,3.23,141.14,141.07,3.06]
[1763222854083,8.24342167,141.13,141.07,3.06]
[1763222854381,3.07,141.13,141.07,3.06]
[1763222854582,3.07,141.11,141.05,3.18]
[1763222854782,3.12052081,141.09,141.07,0.04892911]
[1763222854979,3.07,141.09,141.05,3.18]
[1763222855179,0.0468171,141.09,141.07,0.05284988]
[1763222855387,3.1168171,141.09,141.07,0.05284988]
[1763222855792,3.07,141.08,141.07,0.05284988]
[1763222856587,3.07,141.08,141.01,3.18]
[1763222856783,8.24342167,141.08,141.01,3.18]
[1763222856988,3.07,141.08,141.01,3.18]
[1763222857185,5.17342167,141.1,141.0,3.18]
[1763222857489,12.63549508,141.11,141.0,3.18]
[1763222857689,0.0499352,141.06,141.04,0.05046825]
[1763222857886,0.05278026,141.06,141.04,0.05046825]
[1763222858589,0.05278026,141.06,141.04,3.23046825]
[1763222859488,0.05278026,141.06,141.04,0.05046825]
[1763222860993,0.05278026,141.06,141.04,3.23046825]
[1763222861895,0.05278026,141.06,141.04,0.05046825]
[1763222862096,0.05278026,141.06,141.04,3.23046825]
[1763222862798,3.12278026,141.06,141.04,0.05046825]
[1763222864295,3.12278026,141.06,140.98,3.18]
[1763222864596,3.07,141.06,140.98,3.18]
[1763222865193,3.07,141.06,140.93,11.98244644]
[1763222865496,0.05408394,141.01,140.98,0.03722522]
[1763222865693,3.07,141.04,140.98,3.18]
[1763222865891,0.04650715,141.01,140.98,3.21722522]
[1763222866292,3.11650715,141.01,140.98,0.03722522]
[1763222867596,0.04650715,141.01,140.98,3.21722522]
[1763222871300,3.11650715,141.01,140.98,0.03722522]
[1763222871703,0.04650715,141.01,140.98,0.03722522]
[1763222872094,0.04650715,141.01,140.99,3.18]
[1763222873798,0.04650715,141.01,140.98,3.21722522]
[1763222874202,3.11650715,141.01,140.98,0.03722522]
[1763222876305,3.11650715,141.01,140.92,3.18]
[1763222876306,3.07,141.0,140.92,3.18]
[1763222877208,0.04688035,140.97,140.92,3.18]
[1763222878001,3.11688035,140.97,140.89,3.18]
[1763222878809,3.07,140.94,140.83,3.18]
[1763222879108,3.11489426,140.9,140.83,3.18]
[1763222879305,3.11489426,140.9,140.79,3.18]
[1763222879306,3.07,140.9,140.79,3.18]
[1763222879504,3.07,140.88,140.79,3.18]
[1763222879807,0.04699086,140.86,140.79,3.18]
[1763222880199,3.11699086,140.86,140.76,3.18]
[1763222880408,0.04683854,140.82,140.76,3.18]
[1763222880803,3.07,140.93,140.82,3.18]
[1763222881703,3.07,140.93,140.83,3.18]
[1763222881898,0.04784707,140.89,140.86,3.22810506]
[1763222882603,3.11784707,140.89,140.86,0.04810506]
[1763222883302,0.04784707,140.89,140.86,3.22810506]
[1763222883708,3.07,141.0,140.87,3.18]
[1763222883904,3.07,141.0,140.8,7.0214889]
[1763222883905,3.07,141.0,140.9,3.18]
[1763222884708,0.04687418,140.96,140.94,0.05186289]
[1763222885109,0.04687418,140.96,140.94,3.26186289]
[1763222885703,3.17,141.03,140.94,4.68186289]
[1763222886007,3.17,141.07,140.96,3.21]
[1763222886907,0.05346219,141.03,141.0,3.26312205]
[1763222887507,3.22346219,141.03,141.0,0.05312205]
[1763222889209,0.05346219,141.03,141.0,0.05312205]
[1763222889413,0.05346219,141.03,141.0,3.26312205]
[1763222890309,3.22346219,141.03,141.0,0.05312205]
[1763222892012,3.22346219,141.03,140.91,3.25]
[1763222892318,3.17,141.03,140.91,3.25]
[1763222892815,3.17,141.03,140.92,3.25]
[1763222893013,0.0489565,140.98,140.96,0.05191653]
[1763222893310,0.04797484,140.98,140.96,0.05191653]
[1763222894719,3.20797484,140.98,140.96,0.05191653]
[1763222895321,3.16,140.97,140.88,3.25]
[1763222895917,3.16,140.97,140.85,7.0214889]
[1763222896116,3.16,140.97,140.85,3.25]
[1763222896421,3.20853394,140.92,140.9,0.03778773]
[1763222896622,3.16,140.92,140.9,0.03778773]
[1763222896823,3.21285851,140.92,140.9,0.03778773]
[1763222899424,0.05285851,140.92,140.9,0.03778773]
[1763222899623,3.21285851,140.92,140.9,0.03778773]
[1763222900724,0.05285851,140.92,140.9,0.03778773]
[1763222901723,3.21285851,140.92,140.9,0.03778773]
[1763222901914,3.21285851,140.92,140.84,3.25]
[1763222903119,0.05285851,140.92,140.87,3.25]
[1763222903314,0.05127423,140.91,140.87,3.25]
[1763222903924,8.19873375,141.0,140.88,3.25]
[1763222904124,5.03873375,140.99,140.88,3.25]
[1763222904322,3.16,141.0,140.9,3.25]
[1763222904626,15.79012727,141.06,140.9,3.25]
[1763222904627,3.16,141.02,140.9,3.25]
[1763222904821,8.19873375,141.02,140.92,7.0214889]
[1763222905121,0.05370938,140.98,140.96,3.30127423]
[1763222905321,5.03873375,141.05,140.96,3.29528018]
[1763222905627,5.03873375,141.04,140.96,3.25]
[1763222905822,5.03873375,141.05,140.96,3.25]
[1763222906323,0.05089693,141.02,140.99,3.30013157]
[1763222907422,0.05089693,141.02,140.99,0.05013157]
[1763222907728,0.05089693,141.02,140.99,3.30013157]
[1763222911318,1.23443652,141.1,140.99,3.30013157]
[1763222911319,5.03873375,141.09,140.99,3.30013157]
[1763222911523,3.16,141.1,140.99,3.25]
[1763222911931,3.16,141.1,141.0,3.25]
[1763222912327,0.05359853,141.06,141.04,0.04634961]
[1763222912521,0.05359853,141.06,141.04,3.29634961]
[1763222912724,0.05359853,141.06,141.04,0.04634961]
[1763222913327,3.21359853,141.06,141.04,0.04634961]
[1763222915934,3.35,141.04,140.94,3.34]
[1763222916929,0.05034513,141.0,140.98,0.05103672]
[1763222917529,3.40034513,141.0,140.98,0.05103672]
[1763222919031,3.35,140.99,140.91,3.34]
[1763222920027,0.05307004,140.96,140.94,0.05135236]
[1763222920732,3.40307004,140.96,140.94,0.05135236]
[1763222922133,0.05307004,140.96,140.94,0.05135236]
[1763222926541,3.40307004,140.96,140.94,0.05135236]
[1763222928142,0.05307004,140.96,140.94,0.05135236]
[1763222929040,3.40307004,140.96,140.94,0.05135236]
[1763222929346,3.40307004,140.96,140.87,3.34]
[1763222929547,3.35,140.99,140.87,3.34]
[1763222929843,3.35,140.99,140.88,3.34]
[1763222930244,0.05146754,140.95,140.88,3.34]
[1763222934351,0.05146754,140.95,140.9,3.34]
[1763222936747,3.35,141.02,140.93,3.34]
[1763222937749,0.0479929,140.99,140.96,3.39146754]
[1763222941242,0.0479929,140.99,140.96,0.05146754]
[1763222941243,3.3979929,140.99,140.96,0.05146754]
[1763222943854,0.0479929,140.99,140.96,3.21146754]
[1763222946750,3.4079929,140.99,140.96,0.05146754]
[1763222949654,0.0479929,140.99,140.97,3.16]
[1763222950857,5.04804099,141.08,140.99,3.16]
[1763222951057,5.04804099,141.07,140.99,3.16]
[1763222951260,8.40804099,141.08,140.99,3.16]
[1763222951453,5.04804099,141.07,140.99,3.16]
[1763222952163,0.05442978,141.04,141.02,3.25948576]
[1763222954370,0.05442978,141.04,141.02,0.04948576]
[1763222954769,3.24442978,141.04,141.02,0.04948576]
[1763222957071,3.24442978,141.04,141.02,3.25948576]
[1763222957072,0.05442978,141.04,141.02,3.25948576]
[1763222959969,4.97785968,141.11,141.02,3.25948576]
[1763222960164,3.19,141.11,141.02,3.21]
[1763222960870,0.05132656,141.08,141.05,3.26011531]
[1763222972081,3.19,141.15,141.05,3.26011531]
[1763222972273,3.19,141.15,141.05,3.21]
[1763222973179,3.24389471,141.11,141.09,0.05174939]
[1763222973380,3.24107029,141.11,141.09,0.0479522]
[1763222974270,0.05107029,141.11,141.09,0.0479522]
[1763222974784,0.05107029,141.11,141.09,3.2979522]
[1763222979387,0.05107029,141.11,141.09,0.0479522]
[1763222979588,3.20107029,141.11,141.09,0.0479522]
[1763222980583,0.05107029,141.11,141.09,0.0479522]
[1763222981586,0.05107029,141.11,141.09,3.2979522]
[1763222986583,4.40434318,141.17,141.09,3.2979522]
[1763222986787,3.15,141.16,141.09,3.2979522]
[1763222987090,1.80886296,141.15,141.09,3.2979522]
[1763222987383,0.0468467,141.13,141.11,3.25]
[1763222987690,0.0468467,141.13,141.11,3.29556072]
[1763222988388,0.0468467,141.13,141.12,3.25]
[1763222989587,1.80886296,141.19,141.12,3.25]
[1763222989790,1.80886296,141.19,141.11,1.85442368]
[1763222989791,3.15,141.2,141.14,3.25]
[1763222990693,0.0504901,141.18,141.16,0.04669787]
[1763222998296,3.2004901,141.18,141.16,0.04669787]
[1763222998787,3.15,141.17,141.16,0.04669787]
[1763223001689,8.12785968,141.17,141.16,0.04669787]
[1763223005692,8.12785968,141.17,141.08,3.06]
[1763223005693,3.1,141.16,141.08,3.06]
[1763223005891,4.97785968,141.15,141.08,3.06]
[1763223006087,4.97785968,141.14,141.08,3.06]
[1763223006294,8.07785968,141.13,141.08,3.06]
[1763223006489,0.04915521,141.12,141.1,3.06]
[1763223008299,3.14915521,141.12,141.09,0.04887386]
[1763223009195,8.12701489,141.12,141.09,0.04887386]
[1763223009398,3.1,141.11,141.09,0.04887386]
[1763223010903,0.04915521,141.12,141.09,3.10887386]
[1763223011401,3.14915521,141.12,141.09,0.04887386]
[1763223012005,0.04915521,141.12,141.09,3.36887386]
[1763223012400,5.05096702,141.12,141.09,3.36887386]
[1763223012600,0.04915521,141.12,141.09,3.36887386]
[1763223014401,3.40915521,141.12,141.09,0.04887386]
[1763223014599,5.00298571,141.11,141.09,0.04887386]
[1763223014803,5.00298571,141.11,141.09,3.36887386]
[1763223015402,0.04915521,141.12,141.09,3.36887386]
[1763223016110,5.0043033,141.11,141.09,3.36887386]
[1763223016410,0.04915521,141.12,141.09,3.36887386]
[1763223018107,5.00443781,141.15,141.11,3.32]
[1763223018304,3.36,141.19,141.11,3.32]
[1763223018508,5.00479631,141.18,141.11,3.32]
[1763223018709,5.00479631,141.17,141.11,3.32]
[1763223019014,2.82650204,141.22,141.11,3.32]
[1763223019015,8.36479631,141.16,141.11,3.32]
[1763223019212,5.0519997,141.15,141.12,3.37452457]
[1763223019515,0.04720339,141.15,141.12,3.37452457]
[1763223020616,5.00486794,141.14,141.12,3.37452457]
[1763223020920,0.04720339,141.15,141.12,3.37452457]
[1763223021720,5.00851683,141.14,141.12,3.37452457]
[1763223021921,0.04720339,141.15,141.12,3.37452457]
[1763223022120,5.00875062,141.14,141.12,3.37452457]
[1763223022319,3.40720339,141.15,141.12,3.37452457]
[1763223022516,5.00911368,141.14,141.12,3.37452457]
[1763223022717,3.40720339,141.15,141.12,3.37452457]
[1763223022920,5.00914678,141.14,141.12,3.37452457]
[1763223023116,0.04720339,141.15,141.12,3.37452457]
[1763223023320,5.00862565,141.14,141.12,3.37452457]
[1763223023525,0.04720339,141.15,141.12,3.37452457]
[1763223023725,5.00865243,141.14,141.12,3.37452457]
[1763223023926,0.04720339,141.15,141.12,3.37452457]
[1763223024124,5.00847973,141.14,141.12,3.37452457]
[1763223024429,0.04720339,141.15,141.12,3.37452457]
[1763223024726,3.36,141.13,141.12,0.05452457]
[1763223025428,8.36843321,141.13,141.12,0.05452457]
[1763223034633,5.00843321,141.13,141.12,0.05452457]
[1763223034838,5.00843321,141.14,141.12,0.05452457]
[1763223035133,3.23,141.14,141.12,0.05452457]
[1763223035328,0.04720339,141.15,141.12,3.42452457]
[1763223035527,5.00962292,141.14,141.12,3.42452457]
[1763223035725,5.00958174,141.14,141.12,3.42452457]
[1763223036134,3.27720339,141.15,141.12,3.42452457]
[1763223036332,8.23972999,141.14,141.12,0.05452457]
[1763223036533,3.23,141.14,141.12,0.05452457]
[1763223036934,0.04720339,141.15,141.12,0.05452457]
[1763223037632,0.04720339,141.15,141.12,3.42452457]
[1763223037829,0.04720339,141.15,141.14,6.19650204]
[1763223038023,5.01148855,141.21,141.14,6.19650204]
[1763223038225,5.01148855,141.2,141.14,6.19650204]
[1763223038425,5.01148855,141.19,141.15,3.37]
[1763223038628,5.01148855,141.18,141.15,3.37]
[1763223038933,6.53027212,141.24,141.15,3.37]
[1763223039142,0.46,141.2,141.18,0.04858396]
[1763223039438,5.01609427,141.19,141.18,0.04858396]
[1763223040230,5.01609427,141.2,141.18,3.41858396]
[1763223040436,5.01609427,141.19,141.18,0.04858396]
[1763223041135,5.01609427,141.2,141.18,0.04858396]
[1763223041336,5.01609427,141.19,141.18,0.04858396]
[1763223041940,0.46,141.2,141.18,0.04858396]
[1763223042140,0.51090767,141.21,141.18,6.245086]
[1763223044137,5.51654989,141.21,141.18,6.245086]
[1763223044338,0.51090767,141.21,141.18,6.245086]
[1763223047040,0.51090767,141.21,141.18,3.41858396]
[1763223047246,0.51090767,141.21,141.18,0.04858396]
[1763223047745,0.51090767,141.21,141.18,3.41858396]
[1763223048245,0.51090767,141.21,141.18,0.04858396]
[1763223048445,0.46,141.19,141.18,0.04858396]
[1763223050146,0.46,141.19,141.13,3.37]
[1763223051139,0.05020785,141.17,141.15,0.05446578]
[1763223051348,0.05020785,141.17,141.15,3.42446578]
[1763223052944,0.51020785,141.17,141.15,0.05446578]
[1763223053149,0.05020785,141.17,141.15,3.42446578]
[1763223060958,0.51020785,141.17,141.15,0.05446578]
[1763223062051,0.46,141.16,141.15,0.05446578]
[1763223064559,2.30882276,141.17,141.15,0.05446578]
[1763223065056,0.05020785,141.17,141.15,3.35446578]
[1763223068555,0.50020785,141.17,141.15,0.05446578]
[1763223069158,0.45,141.16,141.15,0.05446578]
[1763223069863,0.05020785,141.17,141.15,3.35446578]
[1763223070758,0.50020785,141.17,141.15,3.35446578]
[1763223071158,0.50020785,141.17,141.15,0.05446578]
[1763223071360,0.45,141.16,141.15,0.05446578]
[1763223071555,5.03656557,141.17,141.15,0.05446578]
[1763223071556,0.50020785,141.17,141.15,0.05446578]
[1763223071765,5.48656557,141.17,141.15,0.05446578]
[1763223072065,7.24497263,141.16,141.1,3.09]
[1763223072364,0.45,141.15,141.1,3.09]
[1763223072664,5.43635772,141.15,141.1,3.09]
[1763223073060,0.05369819,141.14,141.12,3.09]
[1763223074563,0.00369819,141.14,141.12,4.89861491]
[1763223074760,4.98635772,141.19,141.14,3.09]
[1763223074963,5.48635772,141.21,141.16,3.09]
[1763223075167,4.98635772,141.2,141.16,3.09]
[1763223075367,4.98635772,141.19,141.16,3.09]
[1763223075568,5.48635772,141.2,141.16,3.09]
[1763223075762,1.80861491,141.22,141.16,3.13705978]
[1763223075763,5.5371754,141.19,141.16,3.13705978]
[1763223075963,0.55081768,141.19,141.16,3.13705978]
[1763223076167,5.5371754,141.19,141.16,3.13705978]
[1763223076368,5.0371754,141.19,141.16,3.13705978]
[1763223076568,0.05081768,141.19,141.16,3.13705978]
[1763223077066,5.0371754,141.19,141.16,3.13705978]
[1763223077366,0.05081768,141.19,141.16,3.13705978]
[1763223077569,5.01954517,141.19,141.16,3.13705978]
[1763223077764,0.05081768,141.19,141.16,3.13705978]
[1763223078069,5.01954517,141.19,141.16,3.13705978]
[1763223078366,0.05081768,141.19,141.16,3.13705978]
[1763223078560,5.01954517,141.19,141.16,3.13705978]
[1763223078758,0.05081768,141.19,141.16,3.13705978]